[Event "Championnat d'Europe Rapide"]
[Date "2024.12.08"]
[White "Boyer, Mahel"]
[Black "Ragger, Markus"]
[WhiteElo "2526"]
[BlackElo "2577"]
[Round "10.12"]
[Result "1-0"]
[TimeControl "900+10"]

1. e4 {[%emt 00:02:56] [%clk 00:12:21]} e5 {[%emt 00:00:02] [%clk 00:15:19]} 2.
Nf3 {[%emt 00:00:02] [%clk 00:12:28]} Nc6 {[%emt 00:00:02] [%clk 00:15:27]} 3.
Nc3 {[%emt 00:00:02] [%clk 00:12:36]} Nf6 {[%emt 00:00:01] [%clk 00:15:36]} 4.
Nd5 {[%emt 00:00:02] [%clk 00:12:44]} Bc5 {[%emt 00:00:05] [%clk 00:15:40]} 5.
c3 {[%emt 00:00:05] [%clk 00:12:49]} O-O {[%emt 00:01:46] [%clk 00:14:04]} 6. d4
{[%emt 00:00:44] [%clk 00:12:16]} exd4 {[%emt 00:00:02] [%clk 00:14:12]} 7. cxd4
{[%emt 00:00:10] [%clk 00:12:16]} Nxd5 {[%emt 00:00:18] [%clk 00:14:03]} 8. dxc5
{[%emt 00:01:56] [%clk 00:10:30]} Nf6 {[%emt 00:00:02] [%clk 00:14:11]} 9. Bd3
{[%emt 00:00:02] [%clk 00:10:38]} Qe7 {[%emt 00:00:30] [%clk 00:13:51]} 10. Bg5
{[%emt 00:00:45] [%clk 00:10:04]} Qxc5 {[%emt 00:00:07] [%clk 00:13:54]} 11. O-O
{[%emt 00:00:34] [%clk 00:09:39]} d6 {[%emt 00:00:48] [%clk 00:13:16]} 12. Qd2
{[%emt 00:00:54] [%clk 00:08:55]} Qa5 {[%emt 00:01:09] [%clk 00:12:17]} 13. Qf4
{[%emt 00:01:20] [%clk 00:07:45]} Ng4 {[%emt 00:00:10] [%clk 00:12:17]} 14. Qg3
{[%emt 00:00:06] [%clk 00:07:48]} Nce5 {[%emt 00:00:30] [%clk 00:11:58]} 15.
Nxe5 {[%emt 00:00:13] [%clk 00:07:45]} Qxe5 {[%emt 00:00:30] [%clk 00:11:37]}
16. Bf4 {[%emt 00:00:04] [%clk 00:07:51]} Qxb2 {[%emt 00:00:29] [%clk 00:11:19]}
17. Rac1 {[%emt 00:00:06] [%clk 00:07:55]} Ne5 {[%emt 00:00:32] [%clk 00:10:57]}
18. Bb1 {[%emt 00:01:16] [%clk 00:06:48]} Bd7 {[%emt 00:01:17] [%clk 00:09:50]}
19. Rxc7 {[%emt 00:01:16] [%clk 00:05:43]} Bc6 {[%emt 00:00:02] [%clk 00:09:58]}
20. h4 {[%emt 00:00:11] [%clk 00:05:42]} Qb6 {[%emt 00:02:05] [%clk 00:08:03]}
21. Re7 {[%emt 00:00:15] [%clk 00:05:37]} Ng6 {[%emt 00:00:02] [%clk 00:08:11]}
22. Bxd6 {[%emt 00:00:03] [%clk 00:05:45]} Nxe7 {[%emt 00:00:08] [%clk
00:08:12]} 23. Bxe7 {[%emt 00:00:02] [%clk 00:05:53]} Qd4 {[%emt 00:00:36] [%clk
00:07:45]} 24. e5 {[%emt 00:00:38] [%clk 00:05:26]} Bd7 {[%emt 00:01:22] [%clk
00:06:33]} 25. Bc2 {[%emt 00:01:47] [%clk 00:03:49]} Rfe8 {[%emt 00:00:20] [%clk
00:06:23]} 26. Rd1 {[%emt 00:00:01] [%clk 00:03:58]} Qg4 {[%clk 00:06:32]} 27.
Rxd7 {[%emt 00:00:07] [%clk 00:04:03]} Qxd7 {[%emt 00:02:30] [%clk 00:04:11]}
28. Bf6 {[%emt 00:00:02] [%clk 00:04:11]} g6 {[%clk 00:04:20]} 29. Qg5 {[%emt
00:00:22] [%clk 00:04:00]} Rxe5 {[%emt 00:00:04] [%clk 00:04:27]} 30. Bxe5
{[%emt 00:00:08] [%clk 00:04:01]} Qd8 {[%emt 00:01:36] [%clk 00:03:00]} 31. Qf4
{[%emt 00:01:07] [%clk 00:03:05]} Qe7 {[%emt 00:00:18] [%clk 00:02:52]} 32. Bb3
{[%emt 00:00:38]} Re8 {[%clk 00:02:37]} 33. Bc3 {[%emt 00:00:04] [%clk
00:03:08]} Rd8 {[%emt 00:00:46]} 34. Bf6 {[%clk 00:02:56]} Qd6 {[%emt 00:00:13]
[%clk 00:02:21]} 35. Bxf7+ {[%emt 00:00:26] [%clk 00:02:39]} Kf8 {[%emt
00:00:02] [%clk 00:02:29]} 36. Be5 {[%emt 00:00:03] [%clk 00:02:46]} Qd2 {[%emt
00:00:13] [%clk 00:02:26]} 37. Qf6 {[%emt 00:00:07] [%clk 00:02:49]} 1-0

[Site "Europe Echecs"]

[Event "Championnat d'Europe Rapide"]
[Date "2024.12.08"]
[White "Mamedov, Rauf"]
[Black "Dragnev, Valentin"]
[WhiteElo "2656"]
[BlackElo "2563"]
[Round "10.13"]
[Result "0-1"]
[TimeControl "900+10"]

1. e4 {[%clk 00:15:19]} c6 {[%emt 00:00:01] [%clk 00:15:19]} 2. Nf3 {[%emt
00:00:22] [%clk 00:15:08]} d5 {[%emt 00:00:01] [%clk 00:15:28]} 3. e5 {[%emt
00:00:02] [%clk 00:15:16]} Bg4 {[%emt 00:00:12] [%clk 00:15:25]} 4. Be2 {[%emt
00:00:01] [%clk 00:15:25]} e6 {[%emt 00:00:03] [%clk 00:15:33]} 5. O-O {[%emt
00:00:03] [%clk 00:15:32]} Ne7 {[%emt 00:00:26] [%clk 00:15:16]} 6. d4 {[%emt
00:00:02] [%clk 00:15:41]} Nd7 {[%emt 00:00:23] [%clk 00:15:03]} 7. Nbd2 {[%emt
00:00:02] [%clk 00:15:49]} c5 {[%emt 00:00:20] [%clk 00:14:53]} 8. c4 {[%emt
00:00:55] [%clk 00:15:04]} dxc4 {[%emt 00:00:19] [%clk 00:14:44]} 9. Nxc4 {[%emt
00:00:02] [%clk 00:15:11]} Nc6 {[%emt 00:00:01] [%clk 00:14:53]} 10. Bg5 {[%emt
00:00:43] [%clk 00:14:38]} Qc7 {[%emt 00:00:02] [%clk 00:15:01]} 11. d5 {[%emt
00:00:08] [%clk 00:14:41]} exd5 {[%emt 00:00:14] [%clk 00:14:57]} 12. Qxd5
{[%emt 00:00:03] [%clk 00:14:47]} Be6 {[%emt 00:00:20] [%clk 00:14:47]} 13. Qe4
{[%emt 00:00:04] [%clk 00:14:53]} h6 {[%emt 00:00:17] [%clk 00:14:41]} 14. Bf4
{[%emt 00:01:07] [%clk 00:13:56]} O-O-O {[%emt 00:02:52] [%clk 00:11:58]} 15.
Rfd1 {[%emt 00:00:10] [%clk 00:13:56]} g5 {[%emt 00:00:12] [%clk 00:11:56]} 16.
Bg3 {[%emt 00:00:05] [%clk 00:14:02]} Rg8 {[%emt 00:00:24] [%clk 00:11:42]} 17.
Nd6+ {[%emt 00:00:19] [%clk 00:13:53]} Bxd6 {[%emt 00:00:14] [%clk 00:11:38]}
18. exd6 {[%emt 00:00:34] [%clk 00:13:29]} Qb6 {[%emt 00:00:01] [%clk 00:11:46]}
19. b4 {[%emt 00:01:54] [%clk 00:11:46]} cxb4 {[%emt 00:02:45] [%clk 00:09:11]}
20. Rac1 {[%emt 00:00:26] [%clk 00:11:29]} Kb8 {[%emt 00:00:08] [%clk 00:09:13]}
21. Bc4 {[%emt 00:04:01] [%clk 00:07:39]} Bxc4 {[%emt 00:01:34] [%clk 00:07:48]}
22. Rxc4 {[%emt 00:00:02] [%clk 00:07:48]} Qb5 {[%emt 00:00:21] [%clk 00:07:37]}
23. a4 {[%emt 00:01:28] [%clk 00:06:30]} Qxa4 {[%emt 00:00:54] [%clk 00:06:52]}
24. Rdc1 {[%emt 00:00:17] [%clk 00:06:24]} Rge8 {[%emt 00:01:26] [%clk
00:05:36]} 25. Qf5 {[%emt 00:00:19] [%clk 00:06:15]} Na5 {[%emt 00:01:30] [%clk
00:04:16]} 26. Rc7 {[%emt 00:00:13] [%clk 00:06:12]} b3 {[%emt 00:00:03] [%clk
00:04:22]} 27. h3 {[%emt 00:01:05] [%clk 00:05:18]} Qe4 {[%emt 00:01:47] [%clk
00:02:45]} 28. Qb5 {[%emt 00:03:26] [%clk 00:02:01]} a6 {[%emt 00:00:33] [%clk
00:02:22]} 29. Qxa5 {[%emt 00:00:22] [%clk 00:01:49]} b2 {[%emt 00:00:01] [%clk
00:02:31]} 30. Nd2 {[%emt 00:00:11] [%clk 00:01:48]} bxc1=Q+ {[%emt 00:00:42]
[%clk 00:02:00]} 31. Rxc1 {[%emt 00:00:01] [%clk 00:01:56]} Qd3 {[%emt 00:00:43]
[%clk 00:01:26]} 32. Qc7+ {[%emt 00:00:26] [%clk 00:01:41]} Ka8 {[%emt 00:00:11]
[%clk 00:01:26]} 33. Nc4 {[%clk 00:01:50]} f5 {[%emt 00:00:35] [%clk 00:01:01]}
34. f3 {[%emt 00:00:01] [%clk 00:02:00]} Qb3 {[%emt 00:00:47] [%clk 00:00:25]}
35. Bf2 {[%emt 00:00:03] [%clk 00:02:06]} g4 {[%emt 00:00:14] [%clk 00:00:21]}
36. hxg4 {[%emt 00:00:26] [%clk 00:01:51]} fxg4 {[%clk 00:00:30]} 37. fxg4
{[%emt 00:00:01] [%clk 00:02:00]} Qb5 {[%emt 00:00:11] [%clk 00:00:28]} 38. Na3
{[%emt 00:01:18] [%clk 00:00:52]} Qd5 {[%emt 00:00:25] [%clk 00:00:13]} 39. Nc4
{[%emt 00:00:01] [%clk 00:01:01]} Qb5 {[%clk 00:00:23]} 40. Na3 {[%emt 00:00:27]
[%clk 00:00:43]} Qd5 {[%emt 00:00:07] [%clk 00:00:26]} 41. Bh4 {[%emt 00:00:30]
[%clk 00:00:23]} Qd4+ {[%emt 00:00:24] [%clk 00:00:12]} 42. Bf2 {[%emt 00:00:09]
[%clk 00:00:23]} Qxg4 {[%emt 00:00:09] [%clk 00:00:14]} 43. Nc4 {[%emt 00:00:08]
[%clk 00:00:25]} Rg8 {[%clk 00:00:23]} 44. g3 {[%clk 00:00:35]} Qf3 {[%emt
00:00:10] [%clk 00:00:23]} 45. Rc3 {[%emt 00:00:08] [%clk 00:00:38]} Qd1+ {[%emt
00:00:11] [%clk 00:00:21]} 46. Kh2 {[%emt 00:00:01] [%clk 00:00:47]} Qh5+ {[%emt
00:00:08] [%clk 00:00:22]} 47. Kg1 {[%clk 00:00:56]} Qd1+ {[%emt 00:00:04] [%clk
00:00:28]} 48. Kh2 {[%emt 00:00:02] [%clk 00:01:04]} Rdf8 {[%emt 00:00:17] [%clk
00:00:22]} 49. Rc2 {[%emt 00:00:55] [%clk 00:00:19]} Qh5+ {[%emt 00:00:06] [%clk
00:00:25]} 50. Kg2 {[%emt 00:00:17]} Qd5+ {[%clk 00:00:20]} 51. Kh2 {[%clk
00:00:37]} Qh5+ {[%emt 00:00:10] [%clk 00:00:21]} 52. Kg2 {[%emt 00:00:01] [%clk
00:00:47]} Qf3+ {[%emt 00:00:02] [%clk 00:00:28]} 53. Kh2 {[%emt 00:00:01] [%clk
00:00:55]} Rg5 {[%emt 00:00:19] [%clk 00:00:19]} 54. Kg1 {[%emt 00:00:35] [%clk
00:00:30]} Rh5 {[%emt 00:00:15] [%clk 00:00:15]} 0-1

[Site "Europe Echecs"]

[Event "Championnat d'Europe Rapide"]
[Date "2024.12.08"]
[White "Baidetskyi, Valentin"]
[Black "Laurusas, Tomas"]
[WhiteElo "2519"]
[BlackElo "2578"]
[Round "10.14"]
[Result "1/2-1/2"]
[TimeControl "900+10"]

1. e4 {[%emt 00:00:01] [%clk 00:15:17]} c5 {[%emt 00:00:24] [%clk 00:14:57]} 2.
Nf3 {[%emt 00:00:04] [%clk 00:15:23]} e6 {[%emt 00:00:01] [%clk 00:15:06]} 3. d4
{[%emt 00:00:06] [%clk 00:15:27]} cxd4 {[%emt 00:00:02] [%clk 00:15:15]} 4. Nxd4
{[%clk 00:15:35]} a6 {[%emt 00:00:01] [%clk 00:15:24]} 5. Nc3 {[%emt 00:00:10]
[%clk 00:15:35]} Qc7 {[%emt 00:00:02] [%clk 00:15:32]} 6. Bd3 {[%emt 00:00:06]
[%clk 00:15:39]} Bc5 {[%emt 00:00:04] [%clk 00:15:39]} 7. Nb3 {[%emt 00:00:21]
[%clk 00:15:28]} Be7 {[%clk 00:15:47]} 8. O-O {[%emt 00:00:08] [%clk 00:15:30]}
Nf6 {[%emt 00:00:02] [%clk 00:15:56]} 9. Qe2 {[%emt 00:00:38] [%clk 00:15:01]}
d6 {[%emt 00:00:03] [%clk 00:16:03]} 10. Kh1 {[%emt 00:00:08] [%clk 00:15:02]}
Nbd7 {[%emt 00:00:25] [%clk 00:15:47]} 11. f4 {[%emt 00:00:16] [%clk 00:14:58]}
b6 {[%emt 00:00:19] [%clk 00:15:38]} 12. Bd2 {[%emt 00:00:25] [%clk 00:14:42]}
Bb7 {[%emt 00:00:02] [%clk 00:15:47]} 13. Rae1 {[%emt 00:00:01] [%clk 00:14:51]}
h5 {[%emt 00:00:01] [%clk 00:15:55]} 14. Nd4 {[%emt 00:00:26] [%clk 00:14:35]}
g6 {[%emt 00:03:59] [%clk 00:12:07]} 15. Nf3 {[%emt 00:00:19] [%clk 00:14:26]}
Nc5 {[%emt 00:00:11] [%clk 00:12:06]} 16. b4 {[%emt 00:00:09] [%clk 00:14:27]}
Nxd3 {[%emt 00:00:06] [%clk 00:12:10]} 17. cxd3 {[%emt 00:00:02] [%clk
00:14:35]} h4 {[%emt 00:01:12] [%clk 00:11:08]} 18. Rc1 {[%emt 00:00:18] [%clk
00:14:27]} Qd8 {[%emt 00:01:04] [%clk 00:10:14]} 19. Be3 {[%emt 00:00:31] [%clk
00:14:06]} h3 {[%emt 00:00:10] [%clk 00:10:14]} 20. Bd4 {[%emt 00:00:11] [%clk
00:14:05]} hxg2+ {[%emt 00:00:30] [%clk 00:09:55]} 21. Qxg2 {[%emt 00:00:22]
[%clk 00:13:53]} d5 {[%emt 00:02:01] [%clk 00:08:03]} 22. a3 {[%emt 00:01:24]
[%clk 00:12:39]} b5 {[%emt 00:01:26] [%clk 00:06:47]} 23. e5 {[%emt 00:02:54]
[%clk 00:09:54]} Nh5 {[%emt 00:00:02] [%clk 00:06:56]} 24. Ne2 {[%emt 00:00:16]
[%clk 00:09:48]} a5 {[%emt 00:00:32] [%clk 00:06:35]} 25. Ng5 {[%emt 00:01:57]
[%clk 00:08:00]} Ng7 {[%emt 00:01:33] [%clk 00:05:12]} 26. Bc5 {[%emt 00:03:46]
[%clk 00:04:24]} Nf5 {[%emt 00:00:15] [%clk 00:05:07]} 27. Nd4 {[%emt 00:01:22]
[%clk 00:03:12]} Nxd4 {[%emt 00:01:37] [%clk 00:03:40]} 28. Bxd4 {[%emt
00:00:02] [%clk 00:03:20]} axb4 {[%emt 00:00:09] [%clk 00:03:41]} 29. Nxe6
{[%emt 00:01:41] [%clk 00:01:50]} fxe6 {[%emt 00:00:01] [%clk 00:03:50]} 30.
Qxg6+ {[%emt 00:00:01] [%clk 00:01:58]} Kd7 {[%emt 00:00:01] [%clk 00:03:59]}
31. f5 {[%clk 00:02:08]} Ra6 {[%clk 00:04:08]} 32. f6 {[%clk 00:02:17]} Qg8
{[%emt 00:01:32] [%clk 00:02:46]} 33. Qxg8 {[%emt 00:00:04] [%clk 00:02:22]}
Rxg8 {[%clk 00:02:55]} 34. fxe7 {[%emt 00:00:02] [%clk 00:02:31]} bxa3 {[%emt
00:00:17] [%clk 00:02:48]} 35. Rf8 {[%emt 00:01:19] [%clk 00:01:22]} Ra8 {[%emt
00:00:02] [%clk 00:02:57]} 36. e8=Q+ {[%emt 00:00:04] [%clk 00:01:28]} Rxe8
{[%emt 00:00:06] [%clk 00:03:00]} 37. Rf7+ {[%emt 00:00:01] [%clk 00:01:37]} Re7
{[%emt 00:00:12] [%clk 00:02:58]} 38. Rxe7+ {[%emt 00:00:02] [%clk 00:01:46]}
Kxe7 {[%clk 00:03:07]} 39. Rc7+ {[%clk 00:01:55]} Ke8 {[%emt 00:00:02] [%clk
00:03:16]} 40. Rxb7 {[%emt 00:00:03] [%clk 00:02:02]} Rg4 {[%emt 00:00:01] [%clk
00:03:25]} 41. Bc5 {[%emt 00:00:32] [%clk 00:01:41]} Ra4 {[%emt 00:00:54] [%clk
00:02:40]} 42. Ra7 {[%emt 00:01:33] [%clk 00:00:18]} Rxa7 {[%emt 00:00:04] [%clk
00:02:47]} 43. Bxa7 {[%clk 00:00:27]} b4 {[%clk 00:02:56]} 44. Bc5 {[%emt
00:00:02] [%clk 00:00:36]} d4 {[%emt 00:00:01] [%clk 00:03:05]} 45. h4 {[%emt
00:00:09] [%clk 00:00:37]} Kd7 {[%clk 00:03:14]} 46. h5 {[%emt 00:00:01] [%clk
00:00:46]} Kc6 {[%clk 00:03:23]} 47. h6 {[%emt 00:00:44] [%clk 00:00:13]} Kxc5
{[%emt 00:00:08] [%clk 00:03:25]} 48. h7 {[%clk 00:00:22]} a2 {[%emt 00:00:07]
[%clk 00:03:27]} 49. h8=Q {[%emt 00:00:03]} a1=Q+ {[%emt 00:00:01] [%clk
00:03:36]} 50. Kh2 {[%emt 00:00:09] [%clk 00:00:31]} Qa6 {[%emt 00:02:57] [%clk
00:00:49]} 51. Qf8+ {[%emt 00:00:27] [%clk 00:00:14]} Kb5 {[%emt 00:00:12] [%clk
00:00:47]} 52. Qd8 {[%emt 00:00:07] [%clk 00:00:17]} b3 {[%emt 00:00:16] [%clk
00:00:42]} 53. Qxd4 {[%emt 00:00:11] [%clk 00:00:16]} Qa2+ {[%clk 00:00:51]} 54.
Kg3 {[%emt 00:00:02] [%clk 00:00:24]} b2 {[%emt 00:00:02] [%clk 00:00:58]} 55.
Qd7+ {[%emt 00:00:06] [%clk 00:00:28]} Kb4 {[%emt 00:00:16] [%clk 00:00:52]} 56.
Qd4+ {[%emt 00:00:02] [%clk 00:00:35]} Ka3 {[%emt 00:00:38] [%clk 00:00:25]} 57.
Qc5+ {[%emt 00:00:15] [%clk 00:00:30]} Ka4 {[%emt 00:00:02] [%clk 00:00:33]} 58.
Qd4+ {[%emt 00:00:18] [%clk 00:00:22]} Ka3 {[%emt 00:00:26] [%clk 00:00:18]} 59.
Qc5+ {[%emt 00:00:06] [%clk 00:00:26]} Ka4 {[%emt 00:00:02] [%clk 00:00:25]} 60.
Qd4+ {[%clk 00:00:35]} Kb5 {[%emt 00:00:05] [%clk 00:00:31]} 61. Qd7+ {[%emt
00:00:02] [%clk 00:00:42]} Kb6 {[%emt 00:00:20] [%clk 00:00:21]} 62. Qd6+ {[%emt
00:00:01] [%clk 00:00:50]} Ka5 {[%emt 00:00:04] [%clk 00:00:29]} 63. Qc5+ {[%emt
00:00:06] [%clk 00:00:54]} Ka4 {[%clk 00:00:38]} 64. Qd4+ {[%clk 00:01:03]} Ka3
{[%emt 00:00:27] [%clk 00:00:21]} 65. Qc5+ {[%emt 00:00:02] [%clk 00:01:11]} Kb3
{[%emt 00:00:09] [%clk 00:00:22]} 66. Qc4+ {[%emt 00:00:02] [%clk 00:01:19]} Ka3
{[%emt 00:00:01] [%clk 00:00:31]} 67. Qc5+ {[%emt 00:00:01] [%clk 00:01:28]} Ka4
{[%emt 00:00:05] [%clk 00:00:36]} 68. Qd4+ {[%emt 00:00:08] [%clk 00:01:30]} Kb5
{[%emt 00:00:05] [%clk 00:00:41]} 69. Qd7+ {[%emt 00:00:01] [%clk 00:01:39]} Kc5
{[%emt 00:00:08] [%clk 00:00:43]} 70. Qd6+ {[%emt 00:00:03] [%clk 00:01:46]} Kb5
{[%clk 00:00:52]} 71. Qd7+ {[%emt 00:00:01] [%clk 00:01:55]} 1/2-1/2

[Site "Europe Echecs"]

[Event "Championnat d'Europe Rapide"]
[Date "2024.12.08"]
[White "Beerdsen, Thomas"]
[Black "Smeets, Jan"]
[WhiteElo "2502"]
[BlackElo "2552"]
[Round "10.15"]
[Result "0-1"]
[TimeControl "900+10"]

1. e4 {[%emt 00:00:47] [%clk 00:14:32]} c6 {[%emt 00:00:03] [%clk 00:15:18]} 2.
d4 {[%emt 00:00:02] [%clk 00:14:40]} d5 {[%emt 00:00:01] [%clk 00:15:27]} 3. f3
{[%emt 00:00:01] [%clk 00:14:49]} e6 {[%emt 00:00:08] [%clk 00:15:30]} 4. Nc3
{[%emt 00:00:02] [%clk 00:14:57]} Nd7 {[%emt 00:00:09] [%clk 00:15:31]} 5. Bd3
{[%emt 00:00:18] [%clk 00:14:48]} c5 {[%emt 00:00:23] [%clk 00:15:19]} 6. exd5
{[%emt 00:00:20] [%clk 00:14:38]} cxd4 {[%emt 00:00:10] [%clk 00:15:20]} 7. Nb5
{[%emt 00:00:55] [%clk 00:13:52]} a6 {[%emt 00:00:02] [%clk 00:15:28]} 8. dxe6
{[%emt 00:00:05] [%clk 00:13:57]} axb5 {[%emt 00:00:41] [%clk 00:14:57]} 9.
exd7+ {[%emt 00:00:03] [%clk 00:14:04]} Bxd7 {[%emt 00:00:04] [%clk 00:15:04]}
10. Ne2 {[%emt 00:00:30] [%clk 00:13:44]} Bc5 {[%emt 00:00:31] [%clk 00:14:42]}
11. O-O {[%emt 00:00:21] [%clk 00:13:33]} Ne7 {[%emt 00:00:15] [%clk 00:14:37]}
12. Ng3 {[%emt 00:00:36] [%clk 00:13:07]} O-O {[%emt 00:00:17] [%clk 00:14:31]}
13. Ne4 {[%emt 00:00:24] [%clk 00:12:52]} Bb6 {[%emt 00:00:27] [%clk 00:14:15]}
14. Kh1 {[%emt 00:01:16] [%clk 00:11:44]} Bc6 {[%emt 00:01:02] [%clk 00:13:25]}
15. Qe1 {[%emt 00:00:53] [%clk 00:11:01]} Nd5 {[%emt 00:04:14] [%clk 00:09:21]}
16. Qg3 {[%emt 00:02:39] [%clk 00:08:31]} Qd7 {[%emt 00:02:32] [%clk 00:07:00]}
17. c4 {[%emt 00:01:33] [%clk 00:07:08]} bxc4 {[%emt 00:01:54] [%clk 00:05:16]}
18. Bxc4 {[%emt 00:00:03] [%clk 00:07:15]} Kh8 {[%emt 00:00:03] [%clk 00:05:23]}
19. Rd1 {[%emt 00:00:17] [%clk 00:07:08]} f5 {[%emt 00:01:49] [%clk 00:03:43]}
20. Ng5 {[%emt 00:00:02] [%clk 00:07:16]} Qe7 {[%emt 00:01:15] [%clk 00:02:39]}
21. Re1 {[%emt 00:00:42] [%clk 00:06:44]} Ne3 {[%emt 00:00:12] [%clk 00:02:38]}
22. Bxe3 {[%emt 00:00:33] [%clk 00:06:20]} dxe3 {[%emt 00:00:01] [%clk
00:02:46]} 23. Rad1 {[%emt 00:01:18] [%clk 00:05:12]} Rae8 {[%emt 00:01:34]
[%clk 00:01:23]} 24. Rd6 {[%emt 00:00:21] [%clk 00:05:01]} h6 {[%emt 00:00:34]
[%clk 00:00:59]} 25. Ne6 {[%emt 00:00:36] [%clk 00:04:34]} Rf6 {[%emt 00:00:02]
[%clk 00:01:07]} 26. Bb3 {[%emt 00:02:13] [%clk 00:02:31]} f4 {[%emt 00:00:14]
[%clk 00:01:04]} 27. Qg4 {[%emt 00:00:04] [%clk 00:02:37]} Ba5 {[%emt 00:00:29]
[%clk 00:00:45]} 28. Re2 {[%emt 00:00:49] [%clk 00:01:57]} Bb5 {[%emt 00:00:04]
[%clk 00:00:52]} 29. Rd5 {[%emt 00:00:29] [%clk 00:01:38]} Bxe2 {[%emt 00:00:09]
[%clk 00:00:53]} 30. Rxa5 {[%emt 00:00:02] [%clk 00:01:46]} Rxe6 {[%emt
00:00:13] [%clk 00:00:50]} 0-1

[Site "Europe Echecs"]